bitfinex/quotes_BTCUSD_20240821
["timestamp","ask_amount","ask_price","bid_price","bid_amount"]
[1724204792584,0.00282541,59304.0,59303.0,0.0109031]
[1724204792795,0.00282541,59304.0,59303.0,0.0039031]
[1724204793007,0.00282541,59304.0,59303.0,0.0009031]
[1724204793008,0.01399049,59304.0,59303.0,0.0009031]
[1724204793223,0.01399049,59304.0,59303.0,0.0049031]
[1724204793434,0.01399049,59304.0,59303.0,0.0019031]
[1724204793884,0.01399049,59304.0,59303.0,0.0079031]
[1724204793885,0.04040616,59304.0,59303.0,0.0079031]
[1724204794095,0.01399049,59304.0,59303.0,0.0079031]
[1724204794326,0.04040621,59304.0,59303.0,0.0079031]
[1724204794539,0.01116508,59304.0,59303.0,0.0079031]
[1724204794968,0.01116508,59304.0,59303.0,0.1484031]
[1724204795209,0.000821,59310.0,59303.0,0.1484031]
[1724204795468,0.000821,59310.0,59308.0,0.001]
[1724204795701,0.01114717,59309.0,59308.0,0.001]
[1724204796174,0.000821,59310.0,59308.0,0.078]
[1724204796421,0.000821,59310.0,59309.0,0.001]
[1724204797179,0.01196817,59310.0,59309.0,0.001]
[1724204797421,0.000821,59310.0,59309.0,0.001]
[1724204797664,0.01196817,59310.0,59306.0,0.001]
[1724204797908,0.00282541,59309.0,59306.0,0.001]
[1724204798389,0.01114717,59308.0,59306.0,0.001]
[1724204798624,0.00282541,59307.0,59306.0,0.001]
[1724204799097,0.01400517,59307.0,59306.0,0.001]
[1724204799339,0.00282541,59307.0,59306.0,0.001]
[1724204799600,0.000821,59310.0,59306.0,0.002]
[1724204799837,0.000821,59310.0,59306.0,0.001]
[1724204800074,0.01117938,59309.0,59306.0,0.004]
[1724204800541,0.00282541,59308.0,59306.0,0.004]
[1724204801027,0.01117938,59307.0,59306.0,0.004]
[1724204801569,0.00282541,59308.0,59306.0,0.004]
[1724204801804,0.00364641,59310.0,59306.0,0.001]
[1724204802071,0.01117938,59307.0,59306.0,0.001]
[1724204802312,0.00364641,59310.0,59306.0,0.002]
[1724204802540,0.01117938,59307.0,59306.0,0.001]
[1724204802778,0.000821,59310.0,59306.0,0.001]
[1724204803012,0.000821,59310.0,59306.0,0.004]
[1724204803264,0.01117938,59309.0,59306.0,0.001]
[1724204803481,0.00282541,59308.0,59306.0,0.001]
[1724204803912,0.01414113,59308.0,59306.0,0.001]
[1724204804999,0.0649,59307.0,59303.0,0.0019031]
[1724204805204,0.0649,59307.0,59306.0,0.002]
[1724204805475,0.145,59307.0,59306.0,0.002]
[1724204805683,0.17141492,59307.0,59306.0,0.002]
[1724204806519,0.17141492,59307.0,59303.0,0.0009031]
[1724204806735,0.02641492,59306.0,59303.0,0.0039031]
[1724204807158,0.00282541,59305.0,59303.0,0.0039031]
[1724204807986,0.00282541,59305.0,59303.0,0.0009031]
[1724204808239,0.00282541,59306.0,59303.0,0.0009031]
[1724204809516,0.00282541,59306.0,59303.0,0.0069031]
[1724204809723,0.00282541,59306.0,59303.0,0.0019031]
[1724204810151,0.00282541,59306.0,59303.0,0.0059031]
[1724204812239,0.01126741,59305.0,59303.0,0.0059031]
[1724204813134,0.01126741,59305.0,59303.0,0.0049031]
[1724204813776,0.065721,59307.0,59303.0,0.0049031]
[1724204813987,0.0112675,59304.0,59303.0,0.0049031]
[1724204814197,0.14512541,59304.0,59303.0,0.0049031]
[1724204814451,0.15639291,59304.0,59303.0,0.0009031]
[1724204814663,0.15639291,59304.0,59303.0,0.0089031]
[1724204814843,0.15639291,59304.0,59303.0,0.0029031]
[1724204815091,0.15639291,59304.0,59303.0,0.0009031]
[1724204815300,0.15639291,59304.0,59303.0,0.0079031]
[1724204815506,0.15639291,59304.0,59303.0,0.0109031]
[1724204815921,0.18280879,59304.0,59303.0,0.0109031]
[1724204816999,0.20117177,59304.0,59303.0,0.0109031]
[1724204817425,0.32756918,59304.0,59303.0,0.0109031]
[1724204817646,0.20117177,59304.0,59303.0,0.0109031]
[1724204817859,0.20117177,59304.0,59303.0,0.0079031]
[1724204818063,0.20117177,59304.0,59303.0,0.0009031]
[1724204818275,0.32758429,59304.0,59303.0,0.0009031]
[1724204818484,0.32756992,59304.0,59303.0,0.0019031]
[1724204818695,0.21883936,59304.0,59303.0,0.0019031]
[1724204819936,0.20047638,59304.0,59303.0,0.0019031]
[1724204821745,0.19765097,59304.0,59303.0,0.0019031]
[1724204822007,0.05535097,59304.0,59303.0,0.0019031]
[1724204824255,0.02893509,59304.0,59303.0,0.0019031]
[1724204824486,0.05534974,59304.0,59303.0,0.0019031]
[1724204828272,0.05534974,59304.0,59303.0,0.0029031]
[1724204828537,0.05534974,59304.0,59303.0,0.0861031]
[1724204828538,0.02893509,59304.0,59303.0,0.0861031]
[1724204828979,0.01766759,59304.0,59303.0,0.0861031]
[1724204829740,0.01766759,59304.0,59303.0,0.1511031]
[1724204829981,0.01766759,59304.0,59303.0,0.16149109]
[1724204830725,0.01766759,59304.0,59303.0,0.31832109]
[1724204830972,0.01766759,59304.0,59303.0,0.37391364]
[1724204831218,0.01766759,59304.0,59303.0,0.32569306]
[1724204831466,0.01766759,59304.0,59303.0,0.29532109]
[1724204831721,0.01766759,59304.0,59303.0,0.36088966]
[1724204831959,0.01766759,59304.0,59303.0,0.29432109]
[1724204832228,0.01766759,59304.0,59303.0,0.30832109]
[1724204832478,0.01766759,59304.0,59303.0,0.2641031]
[1724204832725,0.01766759,59304.0,59303.0,0.0159031]
[1724204833151,0.02905,59304.0,59303.0,0.0159031]
[1724204833590,0.02905,59304.0,59303.0,0.0019031]
[1724204833802,0.02905,59304.0,59303.0,0.0159031]
[1724204834015,0.02905,59304.0,59303.0,0.0259031]
[1724204834224,0.02905,59304.0,59303.0,0.0009031]
[1724204834225,0.11022505,59304.0,59303.0,0.0009031]
[1724204834432,0.13664136,59304.0,59303.0,0.0009031]
[1724204834642,0.13664136,59304.0,59303.0,0.0189031]
[1724204835069,0.12499172,59304.0,59303.0,0.0009031]
[1724204835282,0.12499172,59304.0,59303.0,0.0119031]
[1724204836365,0.20319172,59304.0,59303.0,0.0119031]
[1724204836572,0.20319172,59304.0,59303.0,0.0199031]
[1724204837206,0.20319172,59304.0,59303.0,0.0119031]
[1724204837412,0.20319172,59304.0,59303.0,0.0149031]
[1724204837623,0.20319172,59304.0,59303.0,0.0039031]
[1724204837852,0.20099668,59304.0,59303.0,0.0109031]
[1724204840288,0.27080845,59304.0,59303.0,0.0109031]
[1724204840698,0.19654668,59304.0,59303.0,0.0109031]
[1724204841524,0.19372127,59304.0,59303.0,0.0109031]
[1724204841777,0.19654668,59304.0,59303.0,0.0109031]
[1724204842008,0.19654668,59304.0,59303.0,0.0079031]
[1724204842239,0.19654668,59304.0,59303.0,0.0009031]
[1724204842477,0.19954668,59304.0,59303.0,0.0009031]
[1724204843178,0.20154668,59304.0,59303.0,0.0009031]
[1724204843389,0.1971168,59304.0,59303.0,0.0009031]
[1724204843605,0.2011168,59304.0,59303.0,0.0009031]
[1724204844068,0.19691385,59304.0,59303.0,0.0009031]
[1724204844473,0.19291385,59304.0,59303.0,0.0009031]
[1724204844679,0.19291385,59304.0,59303.0,0.0029031]
[1724204844889,0.19291385,59304.0,59303.0,0.0009031]
[1724204844890,0.19191385,59304.0,59303.0,0.0009031]
[1724204845335,0.19291385,59304.0,59303.0,0.0029031]
[1724204845768,0.25616622,59304.0,59303.0,0.0029031]
[1724204845976,0.25698722,59304.0,59303.0,0.0029031]
[1724204846418,0.18798373,59304.0,59303.0,0.0029031]
[1724204846639,0.19198373,59304.0,59303.0,0.0029031]
[1724204847064,0.18798373,59304.0,59303.0,0.0029031]
[1724204847735,0.19198373,59304.0,59303.0,0.0029031]
[1724204847970,0.18798373,59304.0,59303.0,0.0029031]
[1724204849295,0.27361233,59304.0,59303.0,0.0029031]
[1724204849917,0.18798373,59304.0,59303.0,0.0029031]
[1724204850149,0.18515832,59304.0,59303.0,0.0029031]
[1724204850358,0.18798373,59304.0,59303.0,0.0029031]
[1724204851418,0.10978373,59304.0,59303.0,0.0029031]
[1724204852875,0.04308373,59304.0,59303.0,0.0029031]
[1724204864697,0.2295242,59304.0,59303.0,0.0029031]
[1724204865804,0.2335242,59304.0,59303.0,0.0029031]
[1724204866246,0.35993152,59304.0,59303.0,0.0029031]
[1724204866662,0.2325242,59304.0,59303.0,0.0029031]
[1724204867117,0.2365242,59304.0,59303.0,0.0039031]
[1724204867563,0.11078373,59304.0,59303.0,0.0019031]
[1724204867773,0.04608373,59304.0,59303.0,0.0019031]
[1724204867983,0.04625832,59304.0,59303.0,0.0029031]
[1724204868195,0.04325832,59304.0,59303.0,0.0019031]
[1724204868618,0.04225832,59304.0,59303.0,0.0009031]
[1724204868843,0.04325832,59304.0,59303.0,0.0009031]
[1724204869277,0.03925832,59304.0,59303.0,0.0009031]
[1724204869494,0.04208373,59304.0,59303.0,0.0009031]
[1724204869710,0.04608373,59304.0,59303.0,0.0009031]
[1724204870148,0.04708373,59304.0,59303.0,0.0009031]
[1724204870607,0.04608373,59304.0,59303.0,0.0009031]
[1724204870868,0.1153142,59304.0,59303.0,0.0009031]
[1724204871111,0.1163142,59304.0,59303.0,0.0009031]
[1724204871319,0.1153142,59304.0,59303.0,0.0009031]
[1724204871536,0.1937142,59304.0,59303.0,0.0009031]
[1724204871748,0.2535142,59304.0,59303.0,0.0009031]
[1724204872174,0.2575142,59304.0,59303.0,0.0009031]
[1724204873220,0.2535142,59304.0,59303.0,0.0009031]
[1724204873459,0.2555142,59304.0,59303.0,0.0009031]
[1724204873669,0.2555142,59304.0,59303.0,0.0019031]
[1724204875145,0.18628373,59304.0,59303.0,0.0019031]
[1724204876449,0.18828373,59304.0,59303.0,0.0019031]
[1724204876662,0.19028373,59304.0,59303.0,0.0019031]
[1724204876870,0.18628373,59304.0,59303.0,0.0019031]
[1724204877503,0.19028373,59304.0,59303.0,0.0019031]
[1724204877726,0.18628373,59304.0,59303.0,0.0019031]
[1724204879270,0.27318411,59304.0,59303.0,0.0019031]
[1724204879912,0.18628373,59304.0,59303.0,0.0019031]
[1724204880132,0.10788373,59304.0,59303.0,0.0019031]
[1724204882352,0.23451782,59304.0,59303.0,0.0019031]
[1724204882576,0.17071766,59304.0,59303.0,0.0019031]
[1724204882787,0.04408373,59304.0,59303.0,0.0019031]
[1724204883235,0.54995373,59304.0,59303.0,0.0019031]
[1724204884089,0.6839173,59304.0,59303.0,0.0019031]
[1724204884743,0.8294173,59304.0,59303.0,0.0019031]
[1724204884962,0.8314173,59304.0,59303.0,0.0019031]
[1724204885184,0.98339781,59304.0,59303.0,0.0019031]
[1724204885404,0.8314173,59304.0,59303.0,0.0019031]
[1724204885620,0.8274173,59304.0,59303.0,0.0019031]
[1724204885836,0.97939299,59304.0,59303.0,0.0019031]
[1724204886540,0.69345373,59304.0,59303.0,0.0019031]
[1724204887022,0.54995373,59304.0,59303.0,0.0019031]
[1724204888097,0.67658969,59304.0,59303.0,0.0019031]
[1724204888336,0.67376428,59304.0,59303.0,0.0019031]
[1724204888543,0.54712832,59304.0,59303.0,0.0019031]
[1724204888759,0.67376428,59304.0,59303.0,0.0019031]
[1724204889789,0.54712832,59304.0,59303.0,0.0019031]
[1724204890069,0.67376428,59304.0,59303.0,0.0019031]
[1724204890499,0.67376428,59304.0,59303.0,0.0821031]
[1724204890715,0.54712832,59304.0,59303.0,0.1439031]
[1724204892059,0.54512832,59304.0,59303.0,0.1439031]
[1724204892267,0.51871201,59304.0,59303.0,0.1439031]
[1724204892478,0.51871201,59304.0,59303.0,0.1429031]
[1724204892909,0.51871201,59304.0,59303.0,0.1459031]
[1724204893137,0.51871201,59304.0,59303.0,0.1439031]
[1724204893347,0.51971201,59304.0,59303.0,0.1439031]
[1724204893567,0.51971201,59304.0,59303.0,0.1479031]
[1724204894007,0.51871201,59304.0,59303.0,0.1479031]
[1724204894444,0.51871201,59304.0,59303.0,0.16372306]
[1724204894661,0.51871201,59304.0,59303.0,0.1479031]
[1724204895108,0.51871201,59304.0,59303.0,0.2479031]
[1724204897104,0.51871201,59304.0,59303.0,0.2539031]
[1724204897542,0.51871201,59304.0,59303.0,0.2439031]
[1724204898035,0.51871201,59304.0,59303.0,0.2559031]
[1724204898988,0.51871201,59304.0,59303.0,0.29990606]
[1724204899222,0.51871201,59304.0,59303.0,0.28590606]
[1724204899686,0.51871201,59304.0,59303.0,0.2699031]
[1724204907246,0.01284201,59304.0,59303.0,0.2699031]
[1724204907477,0.0014596,59304.0,59303.0,0.2699031]
[1724204909547,0.0014596,59304.0,59303.0,0.2929031]
[1724204910454,0.0014596,59304.0,59303.0,0.29627505]
[1724204910670,0.0014596,59304.0,59303.0,0.39417521]
[1724204911105,1e-08,59304.0,59303.0,0.39417521]
[1724204911555,1e-08,59304.0,59303.0,0.36817521]
[1724204911761,1e-08,59304.0,59303.0,0.39617521]
[1724204917383,1e-08,59304.0,59303.0,0.3287331]
[1724204925409,1e-08,59304.0,59303.0,0.3307331]
[1724204925620,1e-08,59304.0,59303.0,0.3287331]
[1724204926064,0.000821,59307.0,59305.0,0.03383]
[1724204926273,0.000821,59307.0,59306.0,0.1683]
[1724204926461,0.00061805,59307.0,59306.0,0.30404047]
[1724204926920,0.00061805,59307.0,59306.0,0.30741205]
[1724204928016,0.00061805,59307.0,59306.0,0.34324205]
[1724204928226,0.00061805,59307.0,59306.0,0.35524205]
[1724204928692,0.00061805,59307.0,59306.0,0.36550119]
[1724204929151,0.00061805,59307.0,59306.0,0.38150119]
[1724204929615,0.00061805,59307.0,59306.0,0.36750119]
[1724204929847,0.00061805,59307.0,59306.0,0.38150119]
[1724204930343,0.00061805,59307.0,59306.0,0.38250119]
[1724204930573,0.00061805,59307.0,59306.0,0.43256188]
[1724204930803,0.00061805,59307.0,59306.0,0.38250119]
[1724204931039,0.00061805,59307.0,59306.0,0.36850119]
[1724204931532,5e-08,59307.0,59306.0,0.7447574]
[1724204931777,0.000821,59310.0,59309.0,0.18303]
[1724204932038,0.000821,59310.0,59309.0,0.68365724]
[1724204933073,0.0084,59319.0,59318.0,0.001]
[1724204933317,0.01992134,59319.0,59318.0,0.47533]
[1724204933574,0.0084,59319.0,59318.0,0.53407047]
[1724204933822,0.0084,59319.0,59318.0,0.63407047]
[1724204934649,0.0084,59319.0,59318.0,0.64807047]
[1724204934891,0.0084,59319.0,59318.0,0.59777047]
[1724204935144,0.0084,59319.0,59318.0,0.28747047]
[1724204935458,0.0084,59319.0,59318.0,0.22157047]
[1724204935871,0.0084,59319.0,59318.0,0.19357047]
[1724204936085,0.0084,59319.0,59318.0,0.05916773]
[1724204936278,0.149,59319.0,59318.0,0.17316773]
[1724204936530,0.16071522,59319.0,59318.0,0.17316773]
[1724204936753,0.16071522,59319.0,59318.0,0.15916773]
[1724204936986,0.16071522,59319.0,59318.0,0.17316773]
[1724204937197,0.149,59319.0,59318.0,0.17316773]
[1724204937439,0.149,59319.0,59318.0,0.07316773]
[1724204937655,0.16071522,59319.0,59318.0,0.04516773]
[1724204937882,0.16071522,59319.0,59318.0,0.07316773]
[1724204938108,0.16071522,59319.0,59318.0,0.05916773]
[1724204938530,0.149,59319.0,59318.0,0.07316773]
[1724204938953,0.16071522,59319.0,59318.0,0.07316773]
[1724204940062,0.02011522,59319.0,59318.0,0.07316773]
[1724204940706,0.02011522,59319.0,59318.0,0.23209145]
[1724204940919,0.02011522,59319.0,59318.0,0.33209145]
[1724204940920,0.0084,59319.0,59318.0,0.33209145]
[1724204941578,0.0084,59319.0,59318.0,0.35509145]
[1724204942907,0.0084,59319.0,59318.0,0.19616773]
[1724204943135,0.02019277,59319.0,59318.0,0.07316773]
[1724204943343,0.0084,59319.0,59318.0,0.07316773]
[1724204943554,0.02019277,59319.0,59318.0,0.07316773]
[1724204943767,0.0084,59319.0,59318.0,0.07316773]
[1724204944008,0.10099277,59319.0,59318.0,0.029]
[1724204944225,0.10099277,59319.0,59318.0,0.06283]
[1724204944226,0.0892,59319.0,59318.0,0.06283]
[1724204944448,0.10099277,59319.0,59318.0,0.06283]
[1724204944877,0.10099277,59319.0,59318.0,0.029]
[1724204945326,0.02019277,59319.0,59318.0,0.14233]
[1724204945551,0.02019277,59319.0,59318.0,0.15761611]
[1724204945776,0.02019277,59319.0,59318.0,0.25761611]
[1724204945777,0.0084,59319.0,59318.0,0.25761611]
[1724204946206,0.0084,59319.0,59318.0,0.28061611]
[1724204947710,0.0084,59319.0,59318.0,0.26533]
[1724204948809,0.0084,59319.0,59318.0,0.16283]
[1724204949021,0.0736,59319.0,59318.0,0.06283]
[1724204949308,0.0736,59319.0,59318.0,0.16283]
[1724204949549,0.0853992,59319.0,59318.0,0.16283]
[1724204950400,0.1693992,59319.0,59318.0,0.06283]
[1724204950614,0.1693992,59319.0,59318.0,0.029]
[1724204951760,0.1693992,59319.0,59318.0,0.015]
[1724204952004,0.0853992,59319.0,59318.0,0.015]
[1724204952235,0.0201992,59319.0,59318.0,0.015]
[1724204952467,0.0201992,59319.0,59318.0,0.029]
[1724204952943,0.0084,59319.0,59318.0,0.029]
[1724204953401,0.02009101,59319.0,59318.0,0.029]
[1724204953633,0.0084,59319.0,59318.0,0.029]
[1724204953860,0.02009101,59319.0,59318.0,0.029]
[1724204954094,0.0084,59319.0,59318.0,0.029]
[1724204954356,0.156,59319.0,59318.0,0.029]
[1724204954583,0.16769101,59319.0,59318.0,0.029]
[1724204955514,0.16769101,59319.0,59318.0,0.028]
[1724204956002,0.19409918,59319.0,59318.0,0.028]
[1724204956471,0.084,59318.0,59312.0,0.001]
[1724204956714,0.084,59318.0,59310.0,0.0009031]
[1724204956715,0.1476,59316.0,59315.0,0.001]
[1724204956944,0.1476,59316.0,59312.0,0.001]
[1724204957176,0.084,59315.0,59312.0,0.001]
[1724204957430,0.1476,59314.0,59313.0,0.001]
[1724204957650,0.084,59313.0,59312.0,0.001]
[1724204957879,0.1476,59313.0,59312.0,0.001]
[1724204958353,0.15927179,59313.0,59312.0,0.001]
[1724204959666,0.15927179,59313.0,59312.0,0.011]
[1724204959861,0.15927179,59313.0,59312.0,0.01]
[1724204960109,0.15927179,59313.0,59312.0,0.023]
[1724204960965,0.15927179,59313.0,59312.0,0.022]
[1724204961702,0.15927179,59313.0,59312.0,0.023]
[1724204962596,0.15927179,59313.0,59312.0,0.022]
[1724204967529,0.07527179,59313.0,59312.0,0.009]
[1724204967780,0.07527179,59313.0,59312.0,0.007]
[1724204968273,0.07527179,59313.0,59312.0,0.004]
[1724204968567,0.01167179,59313.0,59312.0,0.0819]
[1724204968809,0.01167179,59313.0,59312.0,0.17616031]
[1724204969052,0.0084,59319.0,59312.0,0.17616031]
[1724204969053,0.0084,59319.0,59318.0,0.001]
[1724204970260,0.01988024,59319.0,59318.0,0.001]
[1724204970503,0.0084,59319.0,59318.0,0.001]
[1724204970772,0.0084,59319.0,59318.0,0.013]
[1724204971544,0.0084,59319.0,59318.0,0.0948]
[1724204972281,0.0084,59319.0,59318.0,0.11351164]
[1724204973027,0.0084,59319.0,59318.0,0.1248628]
[1724204973819,0.0084,59319.0,59318.0,0.1883628]
[1724204974529,0.0084,59319.0,59318.0,0.09351164]
[1724204974711,0.0084,59319.0,59318.0,0.04683]
[1724204974974,0.02000665,59319.0,59318.0,0.021]
[1724204975187,0.075,59319.0,59318.0,0.021]
[1724204975401,0.08660665,59319.0,59318.0,0.021]
[1724204975795,0.08660665,59319.0,59318.0,0.013]
[1724204976036,0.08660665,59319.0,59318.0,0.001]
[1724204976245,0.08660665,59319.0,59318.0,0.015]
[1724204976898,0.08660665,59319.0,59318.0,0.029]
[1724204977563,0.08660665,59319.0,59318.0,0.015]
[1724204978000,0.08660665,59319.0,59318.0,0.028]
[1724204980047,0.08660665,59319.0,59318.0,0.027]
[1724204980281,0.16980665,59319.0,59318.0,0.027]
[1724204980503,0.1582,59319.0,59318.0,0.027]
[1724204980717,0.16979084,59319.0,59318.0,0.027]
[1724204981452,0.18676992,59319.0,59318.0,0.027]
[1724204982332,0.19619968,59319.0,59318.0,0.014]
[1724204982771,0.1448,59318.0,59312.0,0.001]
[1724204982980,0.00282541,59317.0,59311.0,0.001]
[1724204983192,0.01438236,59317.0,59311.0,0.001]
[1724204983401,0.01438236,59317.0,59312.0,0.001]
[1724204983615,0.1448,59315.0,59310.0,0.0009031]
[1724204983838,0.1448,59313.0,59310.0,0.0009031]
[1724204984073,0.00282541,59312.0,59310.0,0.0009031]
[1724204984281,0.01435385,59312.0,59310.0,0.0009031]
[1724204984489,0.01435385,59312.0,59310.0,0.0019031]
[1724204984700,0.01152844,59312.0,59310.0,0.0019031]
[1724204985126,0.07,59319.0,59311.0,0.001]
[1724204985346,0.01151348,59318.0,59311.0,0.001]
[1724204985568,0.00282541,59317.0,59311.0,0.001]
[1724204985793,0.00282541,59317.0,59312.0,0.012]
[1724204986048,0.07,59319.0,59314.0,0.001]
[1724204986282,0.07,59319.0,59317.0,0.001]
[1724204986511,0.0084,59319.0,59318.0,0.0835]
[1724204987428,0.0084,59319.0,59318.0,0.09854]
[1724204987911,0.0084,59319.0,59318.0,0.0835]
[1724204989251,0.0084,59319.0,59318.0,0.1085]
[1724204989921,0.0084,59319.0,59318.0,0.026]
[1724204992112,0.01999492,59319.0,59318.0,0.026]
[1724204995994,0.01999492,59319.0,59318.0,0.025]
[1724204997616,0.01999492,59319.0,59318.0,0.1692]
[1724204998046,0.01999492,59319.0,59318.0,0.18612]
[1724204998047,0.0084,59319.0,59318.0,0.18612]
[1724204998258,0.0084,59319.0,59318.0,0.1692]
[1724204998898,0.0084,59319.0,59318.0,0.17983914]
[1724205002180,0.1509,59319.0,59318.0,0.025]
[1724205002411,0.17730817,59319.0,59318.0,0.025]
[1724205002623,0.18885821,59319.0,59318.0,0.025]
[1724205003302,0.11135821,59319.0,59318.0,0.011]
[1724205003524,0.04635821,59319.0,59318.0,0.02]
[1724205004169,0.04635821,59319.0,59318.0,0.009]
[1724205004602,0.04635821,59319.0,59318.0,0.015]
[1724205005042,0.04635821,59319.0,59318.0,0.01]
[1724205005276,0.01995004,59319.0,59318.0,0.001]
[1724205005469,0.01995004,59319.0,59318.0,0.0838]
[1724205005681,0.01995004,59319.0,59318.0,0.0898]
[1724205005902,0.0084,59319.0,59318.0,0.0838]
[1724205006344,0.0084,59319.0,59318.0,0.0928]
[1724205006606,0.0084,59319.0,59318.0,0.0838]
[1724205006821,0.0084,59319.0,59318.0,0.0918]
[1724205007275,0.0084,59319.0,59318.0,0.10205845]
[1724205007965,0.0084,59319.0,59318.0,0.11105845]
[1724205008602,0.0084,59319.0,59318.0,0.10205845]
[1724205008819,0.0084,59319.0,59318.0,0.11305845]
[1724205009957,0.00819707,59319.0,59318.0,0.11305845]
[1724205011614,0.00819707,59319.0,59318.0,0.14278029]
[1724205012344,0.00819707,59319.0,59318.0,0.13252184]
[1724205013566,0.00819707,59319.0,59318.0,0.1028]
[1724205014473,0.00819707,59319.0,59318.0,0.17187147]
[1724205014691,0.00819707,59319.0,59318.0,0.76640431]
[1724205014929,0.00819707,59319.0,59318.0,0.73669927]
[1724205015150,0.00819707,59319.0,59318.0,0.71160533]
[1724205015363,0.00819707,59319.0,59318.0,0.71160647]
[1724205015574,0.00819707,59319.0,59318.0,0.70060647]
[1724205015789,0.00819707,59319.0,59318.0,0.68660647]
[1724205016002,0.00819707,59319.0,59318.0,0.69760647]
[1724205016227,0.00819707,59319.0,59318.0,0.63480647]
[1724205016454,0.00819707,59319.0,59318.0,0.62080647]
[1724205017341,0.00819707,59319.0,59318.0,0.63480647]
[1724205017575,0.00819707,59319.0,59318.0,0.14883]
[1724205017791,0.00819707,59319.0,59318.0,0.029]
[1724205018005,0.01984463,59319.0,59318.0,0.029]
[1724205018215,0.01984463,59319.0,59318.0,0.06282]
[1724205018216,0.00819707,59319.0,59318.0,0.06282]
[1724205020478,0.00819707,59319.0,59318.0,0.16282]
[1724205023022,0.00819707,59319.0,59318.0,0.06282]
[1724205023264,0.00819707,59319.0,59318.0,0.16282]
[1724205024231,0.00819707,59319.0,59318.0,0.06282]
[1724205025439,0.08659707,59319.0,59318.0,0.06282]
[1724205025931,0.09824463,59319.0,59318.0,0.06282]
[1724205029057,0.16494463,59319.0,59318.0,0.028]
[1724205030106,0.16494463,59319.0,59318.0,0.014]
[1724205030392,0.16494463,59319.0,59316.0,0.001]
[1724205030658,0.16494463,59319.0,59318.0,0.013]
[1724205030912,0.15329707,59319.0,59318.0,0.013]
[1724205031166,0.1648864,59319.0,59316.0,0.001]
[1724205031654,0.1648864,59319.0,59318.0,0.012]
[1724205032147,0.1648864,59319.0,59318.0,0.0269031]
[1724205032361,0.1648864,59319.0,59318.0,0.0009031]
[1724205033024,0.0197864,59319.0,59318.0,0.0009031]
[1724205033233,0.0197864,59319.0,59318.0,0.0159031]
[1724205034320,0.0197864,59319.0,59318.0,0.0279031]
[1724205034321,0.00819707,59319.0,59318.0,0.0279031]
[1724205035195,0.00819707,59319.0,59318.0,0.0269031]
[1724205035416,0.15609707,59319.0,59318.0,0.0269031]
[1724205035907,0.19407513,59319.0,59318.0,0.0269031]
[1724205038574,0.19407513,59319.0,59318.0,0.0149031]
[1724205038810,0.19407513,59319.0,59318.0,0.0009031]
[1724205039265,0.19407513,59319.0,59318.0,0.0099031]
[1724205040194,0.19407513,59319.0,59318.0,0.0159031]
[1724205040425,0.21689059,59319.0,59318.0,0.0159031]
[1724205040683,0.19690054,59319.0,59318.0,0.0159031]
[1724205042559,0.19690054,59319.0,59318.0,0.0069031]
[1724205042783,0.19690054,59319.0,59318.0,0.0109031]
[1724205043424,0.19690054,59319.0,59318.0,0.0049031]
[1724205044968,0.19407513,59319.0,59318.0,0.0049031]
[1724205046490,0.16766623,59319.0,59318.0,0.0049031]
[1724205046705,0.01976623,59319.0,59318.0,0.0049031]
[1724205048011,0.01976623,59319.0,59318.0,0.0833031]
[1724205048454,0.00819707,59319.0,59318.0,0.0833031]
[1724205049109,0.00819707,59319.0,59318.0,0.09893341]
[1724205049323,0.00819707,59319.0,59318.0,0.0843031]
[1724205049977,0.00819707,59319.0,59318.0,0.0803031]
[1724205050237,0.00819707,59319.0,59318.0,0.0903031]
[1724205050447,0.00819707,59319.0,59318.0,0.1043031]
[1724205062020,0.01980685,59319.0,59318.0,0.1043031]
[1724205062232,0.00819707,59319.0,59318.0,0.1043031]
[1724205062442,0.01980685,59319.0,59318.0,0.1043031]
[1724205062666,0.00819707,59319.0,59318.0,0.1043031]
[1724205063137,0.01980685,59319.0,59318.0,0.1043031]
[1724205063362,0.00819707,59319.0,59318.0,0.12212516]
[1724205063583,0.00819707,59319.0,59318.0,0.1043031]
[1724205064560,0.00819707,59319.0,59318.0,0.10138011]
[1724205067665,0.00819707,59319.0,59318.0,0.10228321]
[1724205067894,0.00819707,59319.0,59318.0,0.0259031]
[1724205070472,0.15259707,59319.0,59318.0,0.0259031]
[1724205070679,0.16785678,59319.0,59318.0,0.0259031]
[1724205070972,0.17945936,59319.0,59318.0,0.0259031]
[1724205071393,0.16419965,59319.0,59318.0,0.0249031]
[1724205071608,0.16702506,59319.0,59318.0,0.0247721]
[1724205071827,0.19343467,59319.0,59318.0,0.0247721]
[1724205072979,0.19343467,59319.0,59318.0,0.0149031]
[1724205073209,0.19343467,59319.0,59318.0,0.0009031]
[1724205073453,0.21277814,59319.0,59318.0,0.0039031]
[1724205074564,0.19343467,59319.0,59318.0,0.0039031]
[1724205080028,0.19060926,59319.0,59318.0,0.0039031]
[1724205090743,0.69634926,59319.0,59318.0,0.0039031]
[1724205092623,0.69614636,59319.0,59318.0,0.0039031]
[1724205103542,0.55174636,59319.0,59318.0,0.0039031]
[1724205103754,0.52533675,59319.0,59318.0,0.1485031]
[1724205104659,0.52533675,59319.0,59318.0,0.1455031]
[1724205105119,0.52533675,59319.0,59318.0,0.1595031]
[1724205105826,0.52533675,59319.0,59318.0,0.1695031]
[1724205114335,0.51373417,59319.0,59318.0,0.1695031]
[1724205114766,0.52521839,59319.0,59318.0,0.1695031]
[1724205119292,0.52521839,59319.0,59318.0,0.17976445]
[1724205119539,0.51373417,59319.0,59318.0,0.17976445]
[1724205119744,0.52528818,59319.0,59318.0,0.17976445]
[1724205120982,0.52528818,59319.0,59318.0,0.1695031]
[1724205121772,0.51373417,59319.0,59318.0,0.1695031]
[1724205122011,0.52530949,59319.0,59318.0,0.1695031]
[1724205124212,0.52530949,59319.0,59318.0,0.1049031]
[1724205124425,0.52530949,59319.0,59318.0,0.0259031]
[1724205124700,0.51373417,59319.0,59318.0,0.0259031]
[1724205124928,0.52530949,59319.0,59318.0,0.0259031]
[1724205125399,0.52530949,59319.0,59318.0,0.0249031]
[1724205126357,0.72264044,59319.0,59318.0,0.0249031]
[1724205126575,0.74904867,59319.0,59318.0,0.0249031]
[1724205127285,0.69651772,59319.0,59318.0,0.0249031]
[1724205128508,0.69651772,59319.0,59318.0,0.0109031]
[1724205128751,0.69651772,59319.0,59318.0,0.0009031]
[1724205129165,0.69651772,59319.0,59318.0,0.0059031]
[1724205129380,0.69651772,59319.0,59318.0,0.0019031]